Cogmind - Beta 15 @@@ ROGUE MODE // 2025.10.14 @ 23:03:14 Player: Comet Result: Self-destructed Performance ------------- Evolutions (4) 2000 Regions Visited (5) 1000 Robots Destroyed (169) 845 Value Destroyed (5540) 5540 Prototype IDs (8) 160 Alien Tech Used (0) 0 Bonus (809) 809 TOTAL SCORE: 10354 Bonus ------- High Alert Combat Kills 809 Cogmind --------- Core Integrity 449/850 Matter 113/300 Energy 150/150 System Corruption 4% Temperature Cool (-100) Movement Treading (480) Ox4 Location -6/Factory Parts ------- > --- POWER (2) -------- Light Angular Momentum Engine > --- PROPULSION (4) --- Light Treads > --- UTILITY (5) ------ Cryofiber Web Huge Storage Unit Improved Medium Armor Plating > --- WEAPON (4) ------- (None) > --- INVENTORY (25) --- Improved Deuterium Engine Heavy Deuterium Engine Light Fission Core Light Fission Core Advanced Treads Improved Cooling System Huge Storage Unit Compact Matter Pod (150) Transport Network Coupler Recoil Stabilizer Improved Medium Armor Plating Focal Shield Hardlight Generator Corruption Screen High-powered Tractor Beam High-powered Tractor Beam Advanced EMP Blaster Missile Launcher Missile Launcher Power Maul Peak State ------------ > --- POWER ------------ Heavy Deuterium Engine > --- PROPULSION ------- Medium Treads Medium Treads Armored Huge Wheel > --- UTILITY ---------- Cryofiber Web Huge Storage Unit Hardened Heavy Armor Plating > --- WEAPON ----------- Arc Projector Arc Projector Gauss Rifle Gauss Rifle > --- INVENTORY -------- Heavy Deuterium Engine Medium Treads Cooling System Improved Cooling System Huge Storage Unit Compact Matter Pod Transport Network Coupler Hardened Heavy Armor Plating Hardened Heavy Armor Plating Improved Medium Armor Plating Improved Medium Armor Plating Hardlight Generator Corruption Screen High-powered Tractor Beam High-powered Tractor Beam Shock Rifle Heavy EM Shotgun Advanced EMP Blaster Missile Launcher Missile Launcher Missile Launcher Power Maul [Rating: 57] Favorites ----------- Power Heavy Deuterium Engine Engine Heavy Deuterium Engine Power Core Light Fission Core Propulsion Light Treads Treads Light Treads Wheel Wheel Utility Huge Storage Unit Device Cryofiber Web Storage Huge Storage Unit Processor Salvage Targeting Computer Protection Hardened Heavy Armor Plating Weapon Autogun Energy Gun Heavy EM Shotgun Energy Cannon Particle Cannon Ballistic Gun Autogun Launcher Missile Launcher Impact Weapon Power Maul Build | -11 -10 -9 -8 -7 -6 ------- Run | Yrd Mat Mat Mat Fac Fac Slots Evolved 8 | . . 2 2 2 2 Power 1 | . . . . . 1 Propulsion 2 | . . . 2 . . Utility 3 | . . . . 2 1 Weapon 2 | . . 2 . . . Parts Attached 86 | 4 7 21 13 29 12 Power 11 | . 1 3 . 3 4 Engine 8 | . 1 3 . 3 1 Core 3 | . . . . . 3 Reactor . | . . . . . . Propulsion 23 | 2 . 4 4 11 2 Treads 15 | 2 . 1 2 8 2 Leg . | . . . . . . Wheel 8 | . . 3 2 3 . Hover . | . . . . . . Flight . | . . . . . . Utility 14 | . 5 2 1 4 2 Device 2 | . . . . 2 . Storage 3 | . 2 1 . . . Processor 2 | . 2 . . . . Hackware . | . . . . . . Protection 7 | . 1 1 1 2 2 Artifact . | . . . . . . Weapon 38 | 2 1 12 8 11 4 Energy Gun 14 | . . 2 5 5 2 Energy Cannon 1 | . . 1 . . . Ballistic Gun 16 | 2 1 7 1 3 2 Ballistic Cannon . | . . . . . . Launcher 5 | . . 2 2 1 . Special Weapon . | . . . . . . Impact Weapon 2 | . . . . 2 . Slashing Weapon . | . . . . . . Piercing Weapon . | . . . . . . Special Melee Weapon . | . . . . . . Unidentified Prototypes 8 | . . 2 2 3 1 Corrupted Parts 1 | . . . . 1 . System Corruption 1 | . . . . 1 . Parts Lost 29 | . . . 1 9 19 Power 3 | . . . . 1 2 Propulsion 9 | . . . 1 1 7 Utility 4 | . . . . 1 3 Weapon 13 | . . . . 6 7 Highest Loss Streak 7 | . . . 1 4 7 To Critical Strikes 1 | . . . . . 1 Average Backups 19 | . 3 18 22 21 20 Power 1 | . . . 1 1 2 Propulsion 1 | . . 2 . 1 2 Utility 10 | . 1 7 10 12 11 Weapon 6 | . 1 7 10 7 3 Tool/Special . | . . . . . . Unused Backups 29 | . . 5 4 8 12 Power 3 | . . 1 . 1 1 Propulsion . | . . . . . . Utility 22 | . . 2 4 5 11 Weapon 4 | . . 2 . 2 . Tool/Special . | . . . . . . Average Slot Usage (%) 87 | . 89 99 99 83 76 Engine 7 | . 6 11 9 7 5 Treads 13 | . 28 3 17 15 14 Wheel 9 | . . 18 18 7 5 Device 5 | . . . . 6 12 Storage 8 | . 11 11 9 7 6 Protection 7 | . 1 11 8 6 5 Energy Gun 11 | . . 4 6 18 8 Ballistic Gun 16 | . 28 36 27 7 7 Launcher 1 | . . . 1 1 1 Peak Build Rating 57 | 4 9 20 33 57 55 Average Rating 36 | 3 7 16 26 49 45 On Entrance 17 | . 4 7 20 33 43 Naked Turns . | . . . . . . Heaviest Build 137 | 3 16 105 107 133 137 Greatest Support 106 | 40 40 40 28 100 106 Greatest Overweight (x) 42 | . . 10 4 42 13 Average Overweight (x) 4 | . . 3 3 4 10 Largest Inventory Capacity 25 | 5 8 25 25 25 25 Average Capacity 23 | 5 7 22 25 25 25 Most Carried 25 | . 7 25 25 25 23 Average Carried 20 | . 3 18 24 23 20 Final Capacity 25 | 5 8 25 25 25 25 Final Carried 25 | . 6 25 25 20 20 Class Distribution -------------------- 71% | Tank 15% | Mutant 12% | Scavenger-Tank Dominant Class ---------------- Mutant | -10/Materials Tank | -9/Materials Scavenger-Tank | -8/Materials Tank | -7/Factory Tank | -6/Factory Resources | -11 -10 -9 -8 -7 -6 ----------- Run | Yrd Mat Mat Mat Fac Fac Matter Collected 4218 | 184 388 829 782 1414 621 Remotely . | . . . . . . Salvage Created 6805 | . 415 1269 803 3106 1212 Parts 329 | . 29 78 29 142 51 Haulers Intercepted 10 | . 1 5 1 3 . Recyclers Shooed 8 | . . . 1 3 4 Parts Field Recycled . | . . . . . . Retrieved Matter . | . . . . . . Parts Self-Destructed . | . . . . . . Prevented . | . . . . . . Kills | -11 -10 -9 -8 -7 -6 ------- Run | Yrd Mat Mat Mat Fac Fac Combat Hostiles Destroyed 111 | . 5 16 16 52 22 Melee 4 | . . . . 3 1 Guns 62 | . 5 9 11 24 13 Cannons 2 | . . 2 . . . AOE 35 | . . 5 5 17 8 Classes Destroyed 16 | . 7 2 3 3 1 Worker 14 | . 4 5 1 3 1 Builder 8 | . 1 1 1 4 1 Tunneler 2 | . . . 1 1 . Hauler 10 | . 1 5 1 3 . Recycler 13 | . 1 4 2 5 1 Mechanic 1 | . . . . . 1 Operator 2 | . . . . 2 . Watcher 8 | . 1 4 . 3 . Swarmer 15 | . 3 4 . 7 1 Grunt 53 | . 2 6 11 22 12 Brawler 6 | . . 2 1 . 3 Duelist 8 | . . . 1 6 1 Protector 1 | . . . . 1 . Sentry 13 | . . 4 1 8 . Hunter 7 | . . . 2 1 4 Programmer 8 | . . . . 7 1 Best Kill Streak 9 | . 3 6 5 9 5 Combat Bots Only 9 | . 3 4 3 9 4 Max Kills in Single Turn 4 | . 2 2 2 4 2 Gunslinging 1 | . . 1 . . . Exploded 4 | . . 2 2 4 1 Melee 1 | . . . . 1 1 Uniques/NPCs Destroyed . | . . . . . . Combat | -11 -10 -9 -8 -7 -6 -------- Run | Yrd Mat Mat Mat Fac Fac Hostile Shots Fired 638 | . 15 34 69 350 170 Missed 203 | . 5 7 17 126 48 Hits 435 | . 10 27 52 224 122 Melee 19 | . . . . 11 8 Projectile 416 | . 10 27 52 213 114 Critical Strikes 24 | . 1 1 4 10 8 Damage Taken 7548 | . 103 314 830 3736 2565 Core 1022 | . 12 46 62 501 401 Absorbed by Shields . | . . . . . . Regen/Repaired (Parts) 39 | . . 39 . . . Core Remaining (%) 79 | 100 95 88 88 28 . Volleys Fired 312 | . 28 48 55 104 77 Largest 4 | . 2 4 4 4 4 Hottest 200 | . 40 176 200 200 174 Shots Fired 865 | . 56 166 179 298 166 Gun 812 | . 56 154 170 281 151 Cannon 5 | . . 5 . . . Launcher 48 | . . 7 9 17 15 Special . | . . . . . . Kinetic 567 | . 56 140 166 101 104 Thermal 45 | . . 19 . 4 22 Explosive 43 | . . 7 9 12 15 Electromagnetic 210 | . . . 4 181 25 Robot Hit Streak 22 | . 5 6 15 22 8 Robot Miss Streak 6 | . 5 3 4 5 6 Penetration Max 1 | . . . . . 1 Secondary Targets 6 | . . 2 . 1 3 Max Gunslinging Chain 1 | . . 1 . 1 1 Shots Hit Robots 568 | . 31 81 108 233 115 Core Hits 378 | . 19 44 44 166 105 Critical Kills 2 | . . 1 . 1 . Critical Parts Destroyed 10 | . . . 2 7 1 Critical Strikes 15 | . . 1 2 9 3 Burn 2 | . . . . . 2 Destroy 5 | . . 1 2 1 1 Corrupt 1 | . . . . 1 . Smash 7 | . . . . 7 . Melee Attacks 37 | . . . . 37 . Impact 37 | . . . . 37 . Slashing . | . . . . . . Piercing . | . . . . . . Sneak Attacks 3 | . . . . 3 . Combat Hostiles 1 | . . . . 1 . Follow-up Attacks . | . . . . . . Damage Inflicted 15925 | . 372 1623 2716 7924 3290 Guns 7958 | . 328 1148 1473 3157 1852 Cannons 82 | . . 82 . . . Explosions 6556 | . 44 393 1243 3444 1432 Melee 1323 | . . . . 1323 . Ramming 6 | . . . . . 6 Kinetic 5399 | . 328 1047 1461 1056 1507 Thermal 1170 | . 44 183 . 749 194 Explosive 5205 | . . 393 1243 2137 1432 Electromagnetic 2822 | . . . 12 2659 151 Impact 1323 | . . . . 1323 . Slashing . | . . . . . . Piercing . | . . . . . . Highest Corruption 8 | . . . . 8 4 Average Corruption 4 | . . . . 4 3 Corruption Purged . | . . . . . . Corruption Blocked . | . . . . . . Effects 48 | . . . . 43 5 Message Errors 12 | . . . . 10 2 Matter Fused 12 | . . . . 12 . Heat Flow Errors 5 | . . . . 5 . Energy Discharges 6 | . . . . 5 1 Parts Fused 2 | . . . . 2 . Data Loss (minor) 5 | . . . . 5 . Data Loss (major) 2 | . . . . 1 1 Weapon Failures 4 | . . . . 3 1 Overload Shots . | . . . . . . Overflow Damage 544 | . . 15 4 477 48 Projectiles 27 | . . . . 27 . Explosions 125 | . . 15 4 58 48 Melee 392 | . . . . 392 . Knockbacks 3 | . . . . 3 . Impact 2 | . . . . 2 . Kinetic . | . . . . . . Secondary 1 | . . . . 1 . Self-Inflicted Damage 345 | . . 3 . 342 . Shots 11 | . . 1 . 10 . Rammed 1 | . . . . . 1 Targets Rammed 1 | . . . . . 1 Kicked . | . . . . . . Crushed . | . . . . . . Highest Temperature 698 | . 4 275 353 624 698 Average Temperature 147 | . 2 71 87 132 418 Received Heat Transfer 1973 | . 54 111 405 849 554 Effects 21 | . . . . 6 15 Energy Bleed 4 | . . . . 2 2 Interference 4 | . . . . 1 3 Short Circuit 2 | . . . . 1 1 Damage (minor) 2 | . . . . . 2 Damage (major) 5 | . . . . . 5 Damage (core) 4 | . . . . 2 2 Siege Activations . | . . . . . . Martial Activations . | . . . . . . Shielding Activations . | . . . . . . Robots Disrupted 2 | . . . . 2 . Combat Hostiles 2 | . . . . 2 . Robots Corrupted 11 | . . . . 11 . Combat Hostiles 8 | . . . . 8 . Parts Fried 21 | . . . . 21 . Impact Corruptions 18 | . . . . 18 . Robots Melted . | . . . . . . Combat Hostiles . | . . . . . . Parts Melted 1 | . . . . . 1 Heat Transferred 1611 | . 50 407 . 599 555 Parts Sabotaged . | . . . . . . Parts Stolen . | . . . . . . Parts Stripped . | . . . . . . Power Chain Reactions 10 | . . . . 10 . Alert | -11 -10 -9 -8 -7 -6 ------- Run | Yrd Mat Mat Mat Fac Fac Maximum Alert Level 4 | . . 1 1 4 2 Low Security (%) 50 | 100 100 93 46 41 . Level 1 23 | . . 6 53 34 8 Level 2 17 | . . . . 5 91 Level 3 7 | . . . . 17 . Level 4 . | . . . . 1 . Level 5 . | . . . . . . High Security . | . . . . . . Max Security . | . . . . . . Peak Influence 1120 | . 138 291 371 1120 547 Initial 547 | . . 44 117 141 547 Average 252 | . 44 70 229 297 468 Influence Increases 3806 | . 269 642 523 1767 605 Destroy 0b10 Robot/C 2200 | . 100 320 320 1020 440 Destroy 0b10 Robot/NC 295 | . 40 95 30 110 20 Destroy Leader 554 | . 24 98 72 260 100 Successful Hack 3 | . . 3 . . . Disable Machine 195 | . 60 45 30 60 . Destroy Structure 259 | . 15 36 56 107 45 Lose Combat Pursuer 300 | . 30 45 15 210 . Influence Decreases 3322 | . 163 470 489 961 1239 Entered New Map 965 | . . 62 161 171 571 Time Decay 2067 | . 163 408 318 700 478 Lost Part 290 | . . . 10 90 190 Squads Dispatched 22 | . 1 1 1 12 7 Investigation 2 | . 1 1 . . . Extermination 9 | . . . . 8 1 Reinforcement 4 | . . . 1 1 2 Assault 4 | . . . . 3 1 Garrison 3 | . . . . . 3 Intercept . | . . . . . . Searches Triggered . | . . . . . . Construction Impeded 1 | . . . . . 1 Haulers Reinforced . | . . . . . . Active Scanning Responses . | . . . . . . Cargo Convoy Interrupts . | . . . . . . Stealth | -11 -10 -9 -8 -7 -6 --------- Run | Yrd Mat Mat Mat Fac Fac Distress Signals 7 | . . 4 . . 3 Communications Jammed . | . . . . . . Distress Signals . | . . . . . . Times Spotted 157 | . 9 22 18 78 30 Peak Tracking Total 8 | . 3 5 3 8 5 Tactical Retreats 9 | . 1 2 1 5 . Traps | -11 -10 -9 -8 -7 -6 ------- Run | Yrd Mat Mat Mat Fac Fac Traps Triggered 5 | . 1 1 . 2 1 Indirectly . | . . . . . . Trap Hack Attempts . | . . . . . . Triggered . | . . . . . . Disarmed . | . . . . . . Reprogrammed . | . . . . . . Reused . | . . . . . . Traps Extracted . | . . . . . . Installed . | . . . . . . Triggered . | . . . . . . Machines | -11 -10 -9 -8 -7 -6 ---------- Run | Yrd Mat Mat Mat Fac Fac Machines Disabled 13 | . 4 3 2 4 . Max in Single Turn 4 | . 4 1 1 2 . Machines Repaired . | . . . . . . Machines Dismantled . | . . . . . . Machines Sabotaged . | . . . . . . Overloaded Fab Kills . | . . . . . . Hacking | -11 -10 -9 -8 -7 -6 --------- Run | Yrd Mat Mat Mat Fac Fac Machines Accessed 2 | . . 2 . . . Terminals 1 | . . 1 . . . Fabricators . | . . . . . . Repair Stations 1 | . . 1 . . . Recycling Units . | . . . . . . Scanalyzers . | . . . . . . Garrison Access . | . . . . . . Total Hacks 4 | . . 4 . . . Successful 3 | . . 3 . . . Failed 1 | . . 1 . . . Catastrophic . | . . . . . . Database Lockouts . | . . . . . . Manual 3 | . . 2 . 1 . Terminals 1 | . . 1 . . . Fabricators . | . . . . . . Repair Stations 3 | . . 3 . . . Recycling Units . | . . . . . . Scanalyzers . | . . . . . . Garrison Access . | . . . . . . Terminal Hacks . | . . . . . . Fabricator Hacks . | . . . . . . Repair Station Hacks 3 | . . 3 . . . Scan Component 2 | . . 2 . . . Repair 1 | . . 1 . . . Recycling Unit Hacks . | . . . . . . Scanalyzer . | . . . . . . Garrison Access Hacks . | . . . . . . Unauthorized Hacks . | . . . . . . Terminals . | . . . . . . Fabricators . | . . . . . . Repair Stations . | . . . . . . Recycling Units . | . . . . . . Scanalyzers . | . . . . . . Garrison Access . | . . . . . . Data Cores Recovered 1 | . . . . 1 . Used . | . . . . . . Hacking Detections 3 | . . 2 . 1 . Full Trace Events 1 | . . 1 . . . Feedback Events . | . . . . . . Feedback Blocked . | . . . . . . Robot Schematics Acquired . | . . . . . . Robots Built . | . . . . . . Authchips . | . . . . . . Time . | . . . . . . Total Robot Build Rating . | . . . . . . Part Schematics Acquired . | . . . . . . Parts Built . | . . . . . . Authchips . | . . . . . . Time . | . . . . . . Total Part Build Rating . | . . . . . . Parts Repaired 1 | . . 1 . . . Time 32 | . . 32 . . . Parts Recycled . | . . . . . . Recycled Matter . | . . . . . . Retrieved Matter . | . . . . . . Retrieved Components . | . . . . . . Parts Scanalyzed . | . . . . . . Part Schematics Acquired . | . . . . . . Parts Damaged . | . . . . . . Bothacking | -11 -10 -9 -8 -7 -6 ------------ Run | Yrd Mat Mat Mat Fac Fac Used RIF Installer . | . . . . . . Robots Hacked . | . . . . . . Non-combat . | . . . . . . Combat . | . . . . . . Robot Hacks Applied . | . . . . . . Relay Couplers Released . | . . . . . . Fabnet Peak Effective % . | . . . . . . Robots Rewired . | . . . . . . Allies Hacked . | . . . . . . Hacks Repelled . | . . . . . . Allies | -11 -10 -9 -8 -7 -6 -------- Run | Yrd Mat Mat Mat Fac Fac Total Allies . | . . . . . . Largest Group . | . . . . . . Highest-Rated Group . | . . . . . . Highest-Rated Ally . | . . . . . . Total Orders . | . . . . . . Ally Attacks . | . . . . . . Total Damage . | . . . . . . Kills . | . . . . . . Allies Corrupted . | . . . . . . Allies Melted . | . . . . . . Intel | -11 -10 -9 -8 -7 -6 ------- Run | Yrd Mat Mat Mat Fac Fac Active Infowar (turns) . | . . . . . . Robot Analysis Total . | . . . . . . Derelict Logs Recovered . | . . . . . . Drone Launches . | . . . . . . Drone Recoveries . | . . . . . . Exploration | -11 -10 -9 -8 -7 -6 ------------- Run | Yrd Mat Mat Mat Fac Fac Turns Passed 7673 | 62 513 1583 713 3571 1231 Spaces Moved 3534 | 42 250 888 319 1642 393 Core 11 | 9 . . . 2 . Treads 430 | 33 250 111 . 14 22 Legs . | . . . . . . Wheels 3093 | . . 777 319 1626 371 Hover . | . . . . . . Flight . | . . . . . . Fastest Speed 50 | 50 160 135 140 145 170 Average Speed 166 | 136 160 148 143 165 240 Slowest Speed 2150 | 160 160 320 145 2150 275 Overloaded Moves . | . . . . . . Propulsion Burnouts . | . . . . . . Robots Hopped . | . . . . . . Potential Cave-ins . | . . . . . . Cave-ins Triggered . | . . . . . . Exploration Rate (%) 31 | 4 33 65 32 45 10 Regions Visited 5 Branch Regions . Pre-discovered Areas . | . . . . . . Known Exits Taken . | . . . . . . Unknown Exits Taken 5 | 1 1 1 1 1 . Scrap Searched . | . . . . . . Spaces Dug . | . . . . . . Terrain Destroyed 315 | . 16 50 79 112 58 Melee . | . . . . . . Projectile 2 | . . . 1 . 1 AOE 313 | . 16 50 78 112 57 Terrain Rammed . | . . . . . . Walls Destroyed . | . . . . . . Machines Disabled . | . . . . . . Actions | -11 -10 -9 -8 -7 -6 --------- Run | Yrd Mat Mat Mat Fac Fac Total 4674 | 45 312 1069 485 2227 536 Wait 529 | . 17 64 65 346 37 Move 3529 | 41 249 887 318 1641 393 Hop . | . . . . . . Pick Up 55 | . 7 21 9 15 3 Fast Attach 53 | 4 4 13 5 18 9 Attach 27 | . 1 1 4 13 8 Detach 26 | . 2 8 1 10 5 Swap 38 | . 2 10 10 14 2 Drop 67 | . 2 17 18 29 1 Fire 312 | . 28 48 55 104 77 Melee 37 | . . . . 37 . Ram . | . . . . . . Kick . | . . . . . . Crush 1 | . . . . . 1 Escape Stasis . | . . . . . . Rewire . | . . . . . . Trap . | . . . . . . Miscellaneous . | . . . . . . Route ------- -11/Scrapyard -10/Materials -9/Materials (discovered 4 exits: [*Mat x2] / [*Min x2]) -8/Materials -7/Factory (discovered 3 exits: [*Fac x2] / [*Low]) -6/Factory History --------- Turn | Location | Event 5 | -11/Scrapyard | Discovered new exit (range 15) 63 | -11/Scrapyard | Entered Materials 315 | -10/Materials | Build established: Mutant 460 | -10/Materials | Discovered new exit (range 16) 576 | -10/Materials | Entered another Materials area 576 | -9/Materials | Evolved 2 slots: Weapon x2 690 | -9/Materials | Discovered new exit (range 15) 886 | -9/Materials | Discovered new exit (range 6) 1027 | -9/Materials | Build established: Scavenger-Tank 1060 | -9/Materials | Repaired Rocket Launcher 1126 | -9/Materials | Discovered new exit (range 6) 1497 | -9/Materials | Build established: Tank 2143 | -9/Materials | Discovered new exit (range 10) 2159 | -9/Materials | Entered another Materials area 2159 | -8/Materials | Evolved 2 slots: Propulsion x2 2429 | -8/Materials | Build established: Scavenger-Tank 2822 | -8/Materials | Discovered new exit (range 8) 2872 | -8/Materials | Entered Factory 2872 | -7/Factory | Evolved 2 slots: Utility x2 2895 | -7/Factory | Build established: Tank 3033 | -7/Factory | Discovered new exit (range 12) 3082 | -7/Factory | Discovered new exit (range 16) 5654 | -7/Factory | Core integrity fell below 50% 5672 | -7/Factory | First assault squad dispatched 5773 | -7/Factory | Lost 4 parts (1p1u2w) 6278 | -7/Factory | Discovered new exit (range 8) 6286 | -7/Factory | Destroyed 9 combat bots 6443 | -7/Factory | Entered another Factory area 6443 | -6/Factory | Evolved 2 slots: Power x1, Utility x1 6793 | -6/Factory | First assault squad dispatched 7423 | -6/Factory | Garrison activated, responded to threat 7579 | -6/Factory | Lost 6 parts (2p2n2w) 7674 | -6/Factory | Self-destructed Last Messages --------------- 07635_ Hrd. Heavy Armor Plating destroyed. 07635_ Penetrated by Slug. 07635_ Slug penetrates Wall. 07637_ U-05 Engineer builds a Door. 07638_ Slug penetrates U-05 Engineer. 07638_ U-05 Engineer destroyed. 07638_ H-66 Slayer destroyed. 07645_ Gauss Rifle destroyed. 07648_ Penetrated by Slug. 07655_ Med. Treads destroyed. 07658_ Penetrated by Slug. 07661_ Cooling System destroyed. 07661_ O-16 Technician destroyed. 07664_ Slug penetrates Wall. 07665_ System corrupted: Flak Gun jammed. 07667_ System corrupted: Energy discharge (-34). 07668_ Slug penetrates Wall. 07671_ Penetrated by Slug. 07671_ Flak Gun destroyed. 07674_ Med. Treads destroyed. Map ----- +----------------------------------------------------+ | ?????????????????????????????????????????????????? | | ?????????????????????????????????????????????????? | | ?????????????????????????????????????????????????? | | ?????????????????????????????????????????????????? | | ?????????????????????????????????????????????????? | | ?????????????????????????????????????????????????? | | ?????????????????????????????????????????????????? | | ?????????????????????????????????????????????????? | | ?????????????????????????????????????????????????? | | ?????????????????????????????????????????????????? | | ?????????????????????????????????????????????????? | | ???????????????????????????????????????????????? | | #??????????????????????????????????????????????? | | #??????????????????????????????????????????????? | | #??????????????????????????????????????????????? | | #?????????????????????###???????##?????????????? | | #?????????????????????#!=??????? #?????????????? | | #?????????????????????#h#??????? #?????????????? | | #?????????????????????#!#??????? #?????????????? | | #?????????????????????+%#??????? #?????????????? | | #?????????????????????#=#??????# #?????????????? | | #?????????????????????#!#??????# #?????????????? | | #??????####???????????#!#????### ###???????????? | | #????### #####???????# #????# #????#??????? | | ####################### ######!% ###T ###????? | | R %*=@/%!=h%%!= u ??? | | k #########*! !%###?????????? | | #???????# |#???????????? | | #???????###+###???????????? | | #???????? ????????????? | | ######+#############+########## """ ??????????? | | # !# """ #?????????? | | # # """ #?????????? | | # """ """ """ # "" #?????????? | | # """ """ """ # "" #?????????? | | = # """ """ """ #! ?? #?????????? | | # # ?? #?????????? | | # # ? ??? #?????????? | | # #??????????????????? | | # """"T"""" #??????????????????? | | # """"""""""" #??????????????????? | | ###############################??????????????????? | | | | | | | | | | | | | | | | | +----------------------------------------------------+ Best States ------------- Heat Dissipation 59 Energy Generation 29 Energy Capacity 350 Matter Stores 300 Matter Capacity 300 Sight Range 16 Terrain Scan Density 10 Base Temperature (-) 100 Armor Coverage 600 Evasion (%) 40 Recoil Reduction 4 Salvage Targeting 2 Item Schematics ----------------- None Robot Schematics ------------------ None Fabricated ------------ Nothing Repaired ---------- Rocket Launcher | 44% | -9/Materials Alien Tech Used ----------------- None Achievements -------------- None Challenges ------------ None Game ------ Seed BoreEncryptedShockpuncher Manual? 0 Play Time 01:12:54 Cumulative 7.3 hours Start 2025.10.14 @ 21:52:57 End 2025.10.14 @ 23:03:14 Sessions 1 Manual Loads 0 Difficulty Rogue Special Mode None Game No. 12 Rogue 12 Adventurer 0 Explorer 0 Win Type - Total 0 Types 0/0/0/0/0/0/0/0/0/0 Lore% 11 Gallery% 19 Achievement% 41 Wizard Run 0 Options --------- Layout 1 ASCII 0 Keyboard 1 Movement Numpad Keybinds 0 Fullscreen 2 Font 24/Smallcaps Map View 50x35 Zoom Use 0% Tactical HUD 1 Map Filters NONE Filters NONE Steam 1 RUN: f0c7fbec-b511-409b-884c-e910e575c432